[Event "ESP-chT 1st Division 2020"]
[Site "Padron"]
[Date "2020.10.03"]
[Round "1.12"]
[White "Rodrigo Yanguas, Maria"]
[Black "Hernandez Estevez, Yudania"]
[Result "0-1"]
[ECO "B12"]
[WhiteElo "2077"]
[BlackElo "2197"]
[Annotator "ChessBase"]
[PlyCount "100"]
[EventDate "2020.10.01"]
[EventType "team-tourn"]
[EventCountry "ESP"]
[SourceTitle "playchess.com"]
[Source "ChessBase"]
[SourceQuality "1"]
[TimeControl "5400+30"]

1. e4 {[%emt 0:00:00]} c6 {[%emt 0:00:00]} 2. d4 {[%emt 0:00:07]} d5 {[%emt 0:00:03]} 3. e5 {[%emt 0:00:29]} Bf5 {[%emt 0:00:30]} 4. h4 {[%emt 0:00:39]} h5 {[%emt 0:01:32]} 5. Bd3 {[%emt 0:01:25]} Bxd3 {[%emt 0:00:41]} 6. Qxd3 {[%emt 0:00:23]} e6 {[%emt 0:00:13]} 7. Nf3 {[%emt 0:03:56]} Nd7 {[%emt 0:01:05]} 8. Be3 {[%emt 0:03:23]} Ne7 {[%emt 0:02:49]} 9. Nc3 {[%emt 0:06:10]} Nf5 {[%emt 0:10:15]} 10. Bg5 {[%emt 0:13:17]} Qb6 {[%emt 0:05:00]} 11. O-O {[%emt 0:02:17]} f6 {[%emt 0:08:44]} 12. exf6 {[%emt 0:02:44]} gxf6 {[%emt 0:00:05]} 13. Rfe1 {[%emt 0:10:05]} O-O-O {[%emt 0:03:28]} 14. Bf4 {[%emt 0:02:01]} c5 {[%emt 0:01:22]} 15. Nxd5 {[%emt 0:04:11]} Qc6 {[%emt 0:05:26]} 16. Nc3 {[%emt 0:07:27]} Nxd4 {[%emt 0:05:00]} 17. Nxd4 {[%emt 0:00:47]} cxd4 {[%emt 0:00:11]} 18. Nb5 {[%emt 0:02:18]} Bc5 {[%emt 0:00:44]} 19. b4 {[%emt 0:08:01]} Rhg8 {[%emt 0:09:36]} 20. f3 {[%emt 0:03:57]} a6 {[%emt 0:02:59]} 21. a4 {[%emt 0:09:14]} e5 {[%emt 0:02:57]} 22. bxc5 {[%emt 0:01:15]} axb5 {[%emt 0:00:24]} 23. axb5 {[%emt 0:00:32]} Qxc5 {[%emt 0:01:08]} 24. Bd2 {[%emt 0:02:20]} Kc7 {[%emt 0:06:17]} 25. Ra4 {[%emt 0:03:33]} Qd5 {[%emt 0:05:51]} 26. b6+ {[%emt 0:07:01]} Kd6 {[%emt 0:04:01]} 27. Bb4+ {[%emt 0:01:38]} Ke6 {[%emt 0:06:01]} 28. Ra5 {[%emt 0:00:38]} Qc6 {[%emt 0:00:13]} 29. Qb3+ {[%emt 0:02:37]} Kf5 {[%emt 0:03:39]} 30. Qd3+ {[%emt 0:01:12]} Ke6 {[%emt 0:00:57]} 31. Qb3+ {[%emt 0:01:05]} Kf5 {[%emt 0:00:06]} 32. Qd3+ {[%emt 0:00:42]} Ke6 {[%emt 0:00:07]} 33. Raa1 {[%emt 0:00:33]} Nxb6 {[%emt 0:01:34]} 34. Ba5 {[%emt 0:00:24]} Rd5 {[%emt 0:07:31]} 35. Bxb6 {[%emt 0:00:16]} Qxb6 {[%emt 0:00:07]} 36. Reb1 {[%emt 0:00:17]} Qc6 {[%emt 0:01:18]} 37. Qh7 {[%emt 0:00:09]} Rb8 {[%emt 0:03:47]} 38. f4 {[%emt 0:00:06]} Rc5 {[%emt 0:01:42]} 39. Rb2 {[%emt 0:01:21]} e4 {[%emt 0:00:17]} 40. Rab1 {[%emt 0:00:55]} b5 {[%emt 0:00:17]} 41. Ra1 {[%emt 0:00:27]} Ra8 {[%emt 0:00:38]} 42. Rba2 {[%emt 0:00:21]} Rxa2 {[%emt 0:00:34]} 43. Rxa2 {[%emt 0:00:17]} Rxc2 {[%emt 0:00:19]} 44. Ra7 {[%emt 0:00:23]} e3 {[%emt 0:01:47]} 45. Qf7+ {[%emt 0:00:30]} Kf5 {[%emt 0:00:23]} 46. Qxh5+ {[%emt 0:00:38]} Ke4 {[%emt 0:00:33]} 47. Qf3+ {[%emt 0:00:57]} Kd3 {[%emt 0:00:13]} 48. Ra3+ {[%emt 0:00:14]} Kd2 {[%emt 0:00:28]} 49. Qg4 {[%emt 0:00:45]} e2 {[%emt 0:00:27]} 50. Ra1 {[%emt 0:00:30]} Rc1+ {[%emt 0:00:18]} 0-1

[Event "ESP-chT 1st Division 2020"]
[Site "Padron"]
[Date "2020.10.03"]
[Round "1.13"]
[White "Alsina Leal, Daniel"]
[Black "Ladron De Guevara Pinto, Paolo"]
[Result "1-0"]
[ECO "C11"]
[WhiteElo "2494"]
[BlackElo "2433"]
[Annotator "ChessBase"]
[PlyCount "85"]
[EventDate "2020.10.01"]
[EventType "team-tourn"]
[EventCountry "ESP"]
[SourceTitle "playchess.com"]
[Source "ChessBase"]
[SourceQuality "1"]
[TimeControl "5400+30"]

1. e4 {[%emt 0:00:00]} e6 {[%emt 0:00:00]} 2. d4 {[%emt 0:00:00]} d5 {[%emt 0:00:00]} 3. Nc3 {[%emt 0:00:09]} Nf6 {[%emt 0:00:23]} 4. e5 {[%emt 0:00:21]} Nfd7 {[%emt 0:00:06]} 5. f4 {[%emt 0:00:15]} c5 {[%emt 0:00:08]} 6. Nf3 {[%emt 0:00:04]} Nc6 {[%emt 0:00:05]} 7. Be3 {[%emt 0:00:06]} cxd4 {[%emt 0:00:14]} 8. Nxd4 {[%emt 0:00:16]} Bc5 {[%emt 0:00:07]} 9. Qd2 {[%emt 0:00:39]} Nxd4 {[%emt 0:03:26]} 10. Bxd4 {[%emt 0:00:13]} O-O {[%emt 0:00:33]} 11. O-O-O {[%emt 0:02:40]} a6 {[%emt 0:00:09]} 12. h4 {[%emt 0:01:59]} b5 {[%emt 0:00:29]} 13. h5 {[%emt 0:00:15]} b4 {[%emt 0:00:06]} 14. Na4 {[%emt 0:00:12]} Bxd4 {[%emt 0:00:23]} 15. Qxd4 {[%emt 0:00:06]} Qa5 {[%emt 0:00:05]} 16. b3 {[%emt 0:01:22]} Bb7 {[%emt 0:00:04]} 17. h6 {[%emt 0:00:54]} g6 {[%emt 0:00:10]} 18. Kb1 {[%emt 0:01:25]} Bc6 {[%emt 0:00:04]} 19. Nb2 {[%emt 0:00:41]} Qc5 {[%emt 0:04:37]} 20. Rh3 {[%emt 0:07:37]} Qxd4 {[%emt 0:00:15]} 21. Rxd4 {[%emt 0:00:06]} a5 {[%emt 0:00:05]} 22. c3 {[%emt 0:08:49]} f6 {[%emt 0:00:12]} 23. exf6 {[%emt 0:04:33]} Nxf6 {[%emt 0:00:45]} 24. cxb4 {[%emt 0:14:43]} Ne4 {[%emt 0:26:38]} 25. bxa5 {[%emt 0:28:44]} Rxa5 {[%emt 0:43:11]} 26. Rf3 {[%emt 0:07:46]} Ra7 {[%emt 0:02:25]} 27. Ka1 {[%emt 0:08:46]} Bd7 {[%emt 0:00:51]} 28. Nd1 {[%emt 0:04:10]} Rc8 {[%emt 0:00:14]} 29. Kb2 {[%emt 0:00:29]} Rca8 {[%emt 0:01:01]} 30. a4 {[%emt 0:00:37]} Rb8 {[%emt 0:00:23]} 31. Ka3 {[%emt 0:01:32]} Rc7 {[%emt 0:02:31]} 32. Re3 {[%emt 0:00:59]} Be8 {[%emt 0:03:32]} 33. Rexe4 {[%emt 0:00:57]} dxe4 {[%emt 0:00:09]} 34. Bc4 {[%emt 0:00:16]} Kf8 {[%emt 0:00:31]} 35. Rxe4 {[%emt 0:01:11]} Bc6 {[%emt 0:01:15]} 36. Rxe6 {[%emt 0:00:57]} Bxg2 {[%emt 0:01:03]} 37. Ne3 {[%emt 0:00:37]} Bf3 {[%emt 0:00:22]} 38. f5 {[%emt 0:01:00]} g5 {[%emt 0:05:09]} 39. Rf6+ {[%emt 0:00:58]} Ke7 {[%emt 0:00:09]} 40. Rf7+ {[%emt 0:00:24]} Kd6 {[%emt 0:00:13]} 41. Rg7 {[%emt 0:01:02]} Re7 {[%emt 0:02:08]} 42. Be6 {[%emt 0:01:03]} g4 {[%emt 0:03:02]} 43. Nc4+ {[%emt 0:00:52]} 1-0

[Event "ESP-chT 1st Division 2020"]
[Site "Padron"]
[Date "2020.10.03"]
[Round "1.14"]
[White "Alshameary Puente, Ismael"]
[Black "Alonso Moyano, Jonathan"]
[Result "1/2-1/2"]
[ECO "A80"]
[WhiteElo "2373"]
[BlackElo "2334"]
[Annotator "ChessBase"]
[PlyCount "95"]
[EventDate "2020.10.01"]
[EventType "team-tourn"]
[EventCountry "ESP"]
[SourceTitle "playchess.com"]
[Source "ChessBase"]
[SourceQuality "1"]
[TimeControl "5400+30"]

1. d4 {[%emt 0:00:00]} f5 2. Bg5 {[%emt 0:00:00]} h6 {[%emt 0:00:03]} 3. Bh4 {[%emt 0:00:00]} g5 {[%emt 0:00:11]} 4. Bg3 {[%emt 0:00:01]} Nf6 {[%emt 0:00:23]} 5. h4 {[%emt 0:00:25]} g4 {[%emt 0:00:35]} 6. Nc3 {[%emt 0:00:23]} d6 {[%emt 0:01:56]} 7. Qd3 {[%emt 0:04:04]} Bg7 {[%emt 0:08:18]} 8. e4 {[%emt 0:01:56]} Qd7 {[%emt 0:03:51]} 9. O-O-O {[%emt 0:10:22]} fxe4 {[%emt 0:20:04]} 10. Nxe4 {[%emt 0:00:50]} Nxe4 {[%emt 0:00:09]} 11. Qxe4 {[%emt 0:00:06]} Qf5 {[%emt 0:00:07]} 12. Bd3 {[%emt 0:24:15]} Qxe4 {[%emt 0:03:31]} 13. Bxe4 {[%emt 0:00:04]} O-O {[%emt 0:00:42]} 14. Bd5+ {[%emt 0:05:59]} e6 {[%emt 0:03:39]} 15. Be4 {[%emt 0:00:53]} Nc6 {[%emt 0:03:25]} 16. Ne2 {[%emt 0:00:20]} Bd7 {[%emt 0:01:52]} 17. h5 {[%emt 0:08:28]} e5 {[%emt 0:09:10]} 18. dxe5 {[%emt 0:02:03]} Bxe5 {[%emt 0:00:38]} 19. Bxc6 {[%emt 0:00:34]} Bxc6 {[%emt 0:00:56]} 20. Rh4 {[%emt 0:00:13]} Bxg3 {[%emt 0:01:39]} 21. Rxg4+ {[%emt 0:00:29]} Kh7 {[%emt 0:00:27]} 22. fxg3 {[%emt 0:02:33]} Rf2 {[%emt 0:11:48]} 23. Nd4 {[%emt 0:14:22]} Bxg2 {[%emt 0:05:48]} 24. Re1 {[%emt 0:03:33]} Raf8 {[%emt 0:01:18]} 25. Ne6 {[%emt 0:05:45]} R8f7 {[%emt 0:00:34]} 26. Rf4 {[%emt 0:00:11]} Rf3 {[%emt 0:03:07]} 27. Rxf7+ Rxf7 28. Nf4 {[%emt 0:00:47]} Bf3 {[%emt 0:05:06]} 29. Kd2 {[%emt 0:00:26]} Bg4 {[%emt 0:02:37]} 30. Re8 {[%emt 0:01:51]} Kg7 {[%emt 0:04:50]} 31. c4 {[%emt 0:02:35]} Rf8 {[%emt 0:02:50]} 32. Re7+ {[%emt 0:02:51]} Rf7 {[%emt 0:00:08]} 33. Re8 {[%emt 0:00:48]} Rf8 {[%emt 0:01:46]} 34. Re4 {[%emt 0:04:48]} Bf5 {[%emt 0:02:36]} 35. Re3 {[%emt 0:00:05]} c6 {[%emt 0:00:21]} 36. Ke2 {[%emt 0:02:20]} Bg4+ {[%emt 0:01:31]} 37. Kf2 {[%emt 0:00:33]} Bxh5 {[%emt 0:00:47]} 38. Re6 {[%emt 0:00:05]} Bf7 {[%emt 0:00:22]} 39. Rxd6 {[%emt 0:02:26]} Bxc4 {[%emt 0:00:18]} 40. b3 {[%emt 0:00:08]} Bd5 {[%emt 0:00:55]} 41. Ke3 {[%emt 0:00:59]} Re8+ {[%emt 0:00:36]} 42. Kd4 {[%emt 0:00:05]} Re4+ {[%emt 0:01:25]} 43. Kd3 {[%emt 0:00:05]} Re7 {[%emt 0:00:24]} 44. Nh5+ {[%emt 0:01:19]} Kh7 {[%emt 0:00:13]} 45. Nf6+ {[%emt 0:00:06]} Kg7 {[%emt 0:00:11]} 46. Nh5+ {[%emt 0:01:17]} Kh7 {[%emt 0:00:01]} 47. Nf6+ {[%emt 0:01:19]} Kg7 {[%emt 0:00:06]} 48. Nh5+ {[%emt 0:00:16]} 1/2-1/2

[Event "ESP-chT 1st Division 2020"]
[Site "Padron"]
[Date "2020.10.03"]
[Round "1.15"]
[White "Hernandez, Cristian Andres"]
[Black "Garrido Outon, Alex"]
[Result "0-1"]
[ECO "E92"]
[WhiteElo "2320"]
[BlackElo "2366"]
[Annotator "ChessBase"]
[PlyCount "128"]
[EventDate "2020.10.01"]
[EventType "team-tourn"]
[EventCountry "ESP"]
[SourceTitle "playchess.com"]
[Source "ChessBase"]
[SourceQuality "1"]
[TimeControl "5400+30"]

1. d4 {[%emt 0:00:00]} Nf6 {[%emt 0:00:04]} 2. Nf3 {[%emt 0:00:23]} g6 {[%emt 0:05:09]} 3. c4 {[%emt 0:00:59]} Bg7 {[%emt 0:00:47]} 4. Nc3 {[%emt 0:00:17]} O-O {[%emt 0:00:42]} 5. e4 {[%emt 0:00:06]} d6 {[%emt 0:00:04]} 6. Be2 {[%emt 0:00:06]} e5 {[%emt 0:00:42]} 7. dxe5 {[%emt 0:01:17]} dxe5 {[%emt 0:00:07]} 8. Qxd8 {[%emt 0:00:05]} Rxd8 {[%emt 0:00:09]} 9. Bg5 {[%emt 0:00:05]} Re8 {[%emt 0:02:02]} 10. O-O-O {[%emt 0:00:31]} h6 {[%emt 0:01:37]} 11. Bh4 {[%emt 0:01:00]} Na6 {[%emt 0:01:30]} 12. Nd2 {[%emt 0:05:27]} Nc5 {[%emt 0:05:09]} 13. Nd5 {[%emt 0:03:44]} Nxd5 {[%emt 0:07:07]} 14. cxd5 {[%emt 0:00:07]} Bd7 {[%emt 0:03:01]} 15. f3 {[%emt 0:06:24]} c6 {[%emt 0:07:24]} 16. Nc4 {[%emt 0:08:30]} cxd5 {[%emt 0:13:18]} 17. Rxd5 {[%emt 0:03:51]} Rec8 {[%emt 0:04:17]} 18. Bf2 {[%emt 0:07:31]} b5 {[%emt 0:06:37]} 19. Rxc5 {[%emt 0:06:37]} bxc4 {[%emt 0:05:31]} 20. Rd1 {[%emt 0:22:44]} Be6 {[%emt 0:08:11]} 21. Rxc8+ {[%emt 0:09:02]} Rxc8 {[%emt 0:01:00]} 22. Bxa7 {[%emt 0:00:09]} Ra8 {[%emt 0:07:09]} 23. Bc5 {[%emt 0:00:16]} Rxa2 {[%emt 0:01:14]} 24. Rd8+ {[%emt 0:01:56]} Kh7 {[%emt 0:00:01]} 25. Kc2 {[%emt 0:00:38]} Bf6 {[%emt 0:03:57]} 26. Rd1 {[%emt 0:01:16]} Ra8 {[%emt 0:00:47]} 27. Kc3 {[%emt 0:01:36]} Rc8 {[%emt 0:00:18]} 28. Be3 {[%emt 0:00:45]} Rb8 {[%emt 0:03:46]} 29. Bd2 {[%emt 0:04:12]} Be7 {[%emt 0:03:42]} 30. Rb1 {[%emt 0:00:09]} Bb4+ {[%emt 0:01:41]} 31. Kc2 {[%emt 0:00:07]} Bxd2 {[%emt 0:00:13]} 32. Kxd2 {[%emt 0:00:08]} h5 {[%emt 0:00:32]} 33. h4 {[%emt 0:00:28]} g5 {[%emt 0:01:14]} 34. hxg5 {[%emt 0:00:27]} h4 {[%emt 0:01:23]} 35. Kc2 {[%emt 0:03:39]} Kg6 {[%emt 0:00:38]} 36. g3 {[%emt 0:08:42]} hxg3 {[%emt 0:01:01]} 37. Rg1 {[%emt 0:00:10]} Kxg5 {[%emt 0:00:10]} 38. Rxg3+ {[%emt 0:00:07]} Kf4 {[%emt 0:00:03]} 39. Rg1 {[%emt 0:00:16]} Ke3 {[%emt 0:03:06]} 40. Bd1 {[%emt 0:00:04]} Rh8 {[%emt 0:02:03]} 41. Re1+ {[%emt 0:02:40]} Kd4 {[%emt 0:00:02]} 42. Re2 {[%emt 0:00:18]} f5 {[%emt 0:02:01]} 43. Rd2+ {[%emt 0:01:37]} Kc5 {[%emt 0:00:43]} 44. exf5 {[%emt 0:01:18]} Bxf5+ {[%emt 0:00:02]} 45. Kc3 {[%emt 0:00:28]} Rh3 {[%emt 0:00:43]} 46. b4+ {[%emt 0:01:55]} cxb3 {[%emt 0:00:12]} 47. Kxb3 {[%emt 0:00:25]} e4 {[%emt 0:00:29]} 48. Kc3 {[%emt 0:00:53]} exf3 {[%emt 0:00:34]} 49. Rf2 {[%emt 0:00:20]} Be4 {[%emt 0:00:26]} 50. Bb3 {[%emt 0:00:40]} Rg3 {[%emt 0:00:35]} 51. Bd1 {[%emt 0:00:26]} Kd5 {[%emt 0:00:49]} 52. Bb3+ {[%emt 0:00:33]} Ke5 {[%emt 0:00:07]} 53. Bd1 {[%emt 0:00:24]} Rg2 {[%emt 0:01:09]} 54. Rd2 {[%emt 0:00:37]} f2 {[%emt 0:00:48]} 55. Be2 {[%emt 0:00:07]} Kf4 {[%emt 0:00:36]} 56. Bf1 {[%emt 0:00:34]} Rh2 {[%emt 0:00:01]} 57. Kd4 {[%emt 0:00:26]} Bf3 {[%emt 0:00:33]} 58. Rb2 {[%emt 0:00:16]} Kg3 {[%emt 0:00:16]} 59. Rb5 {[%emt 0:01:11]} Rh1 {[%emt 0:00:29]} 60. Rb1 {[%emt 0:00:01]} Kf4 {[%emt 0:01:02]} 61. Kc3 {[%emt 0:00:52]} Ke3 {[%emt 0:00:15]} 62. Kb2 {[%emt 0:00:37]} Be2 {[%emt 0:00:18]} 63. Bg2 {[%emt 0:00:16]} Rxb1+ {[%emt 0:00:22]} 64. Kxb1 {[%emt 0:00:05]} Kf4 {[%emt 0:00:02]} 0-1

[Event "ESP-chT 1st Division 2020"]
[Site "Padron"]
[Date "2020.10.03"]
[Round "1.16"]
[White "Herrera Delgado, Alejandro"]
[Black "Perez Manas, Benjamin"]
[Result "1/2-1/2"]
[ECO "B12"]
[WhiteElo "2280"]
[BlackElo "2259"]
[Annotator "ChessBase"]
[PlyCount "114"]
[EventDate "2020.10.01"]
[EventType "team-tourn"]
[EventCountry "ESP"]
[SourceTitle "playchess.com"]
[Source "ChessBase"]
[SourceQuality "1"]
[TimeControl "5400+30"]

1. e4 {[%emt 0:00:00]} c6 {[%emt 0:00:00]} 2. d4 {[%emt 0:00:00]} d5 {[%emt 0:00:00]} 3. e5 {[%emt 0:00:20]} Bf5 {[%emt 0:00:00]} 4. h4 {[%emt 0:00:22]} Qb6 {[%emt 0:01:00]} 5. c4 {[%emt 0:00:54]} Bxb1 {[%emt 0:19:05]} 6. Rxb1 {[%emt 0:01:04]} e6 {[%emt 0:00:29]} 7. Nf3 {[%emt 0:06:53]} Bb4+ {[%emt 0:09:11]} 8. Bd2 {[%emt 0:00:49]} Ne7 {[%emt 0:10:47]} 9. h5 {[%emt 0:08:22]} h6 {[%emt 0:03:56]} 10. Rh3 {[%emt 0:18:06]} Nd7 {[%emt 0:05:41]} 11. c5 {[%emt 0:04:22]} Bxd2+ {[%emt 0:03:18]} 12. Qxd2 {[%emt 0:09:28]} Qc7 {[%emt 0:01:33]} 13. Nh4 {[%emt 0:11:24]} f6 {[%emt 0:13:41]} 14. f4 {[%emt 0:01:51]} b6 {[%emt 0:07:13]} 15. b4 {[%emt 0:09:43]} O-O {[%emt 0:04:39]} 16. Bd3 {[%emt 0:02:03]} bxc5 {[%emt 0:08:47]} 17. bxc5 {[%emt 0:00:23]} Rab8 {[%emt 0:00:06]} 18. Bc2 {[%emt 0:02:35]} Rxb1+ {[%emt 0:00:08]} 19. Bxb1 {[%emt 0:00:05]} Rb8 {[%emt 0:06:57]} 20. Rb3 {[%emt 0:02:11]} Rxb3 {[%emt 0:00:14]} 21. axb3 {[%emt 0:00:07]} fxe5 {[%emt 0:00:32]} 22. fxe5 {[%emt 0:01:06]} Qb7 {[%emt 0:01:29]} 23. Bc2 {[%emt 0:04:02]} Qa6 {[%emt 0:00:51]} 24. Kf2 {[%emt 0:01:14]} Nf8 {[%emt 0:00:11]} 25. Qc3 {[%emt 0:03:30]} Qa3 {[%emt 0:00:43]} 26. Bb1 {[%emt 0:00:06]} a5 {[%emt 0:00:21]} 27. Nf3 {[%emt 0:03:02]} a4 {[%emt 0:00:54]} 28. Bc2 {[%emt 0:02:05]} axb3 {[%emt 0:00:16]} 29. Qxb3 {[%emt 0:00:16]} Qc1 {[%emt 0:01:07]} 30. Qb1 {[%emt 0:04:27]} Qxb1 {[%emt 0:00:55]} 31. Bxb1 {[%emt 0:00:05]} Kf7 {[%emt 0:00:12]} 32. Ke3 {[%emt 0:01:41]} Ke8 {[%emt 0:00:43]} 33. Bc2 {[%emt 0:02:07]} Kd7 {[%emt 0:00:12]} 34. g4 {[%emt 0:00:38]} g5 {[%emt 0:00:44]} 35. Kd2 {[%emt 0:01:12]} Kc7 {[%emt 0:00:13]} 36. Kc3 {[%emt 0:00:07]} Kb7 {[%emt 0:00:26]} 37. Kb4 {[%emt 0:00:04]} Kc7 {[%emt 0:00:28]} 38. Ka5 {[%emt 0:00:19]} Kb7 {[%emt 0:00:08]} 39. Bd3 {[%emt 0:01:04]} Ka7 {[%emt 0:00:47]} 40. Nd2 {[%emt 0:00:27]} Kb7 {[%emt 0:00:29]} 41. Nb1 {[%emt 0:00:07]} Ka7 {[%emt 0:00:34]} 42. Nc3 {[%emt 0:00:12]} Kb7 {[%emt 0:00:39]} 43. Na4 {[%emt 0:00:15]} Ka7 {[%emt 0:01:12]} 44. Ba6 {[%emt 0:00:36]} Kb8 {[%emt 0:00:27]} 45. Nb6 {[%emt 0:01:19]} Kc7 {[%emt 0:00:04]} 46. Na8+ {[%emt 0:00:39]} Kb8 {[%emt 0:00:07]} 47. Nb6 {[%emt 0:00:08]} Kc7 {[%emt 0:00:04]} 48. Kb4 {[%emt 0:01:10]} Kb8 {[%emt 0:00:29]} 49. Bd3 {[%emt 0:00:30]} Kb7 {[%emt 0:00:12]} 50. Ka5 {[%emt 0:00:17]} Ka7 {[%emt 0:00:06]} 51. Na4 {[%emt 0:00:05]} Kb7 {[%emt 0:00:07]} 52. Nc3 {[%emt 0:00:57]} Ka7 {[%emt 0:00:08]} 53. Na2 {[%emt 0:00:27]} Kb7 {[%emt 0:00:11]} 54. Nb4 {[%emt 0:00:40]} Ka7 {[%emt 0:00:39]} 55. Ba6 {[%emt 0:00:17]} Nd7 {[%emt 0:00:31]} 56. Nd3 {[%emt 0:00:33]} Nb8 {[%emt 0:00:39]} 57. Nb4 {[%emt 0:00:05]} Nxa6 {[%emt 0:00:14]} 1/2-1/2

[Event "ESP-chT 1st Division 2020"]
[Site "Padron"]
[Date "2020.10.03"]
[Round "1.17"]
[White "Martinez Ramirez, Erik"]
[Black "Perera Borrego, Maria Adela"]
[Result "1-0"]
[ECO "C11"]
[WhiteElo "2231"]
[BlackElo "2221"]
[Annotator "ChessBase"]
[PlyCount "97"]
[EventDate "2020.10.01"]
[EventType "team-tourn"]
[EventCountry "ESP"]
[SourceTitle "playchess.com"]
[Source "ChessBase"]
[SourceQuality "1"]
[TimeControl "5400+30"]

1. e4 {[%emt 0:00:00]} e6 {[%emt 0:00:00]} 2. Nf3 {[%emt 0:00:00]} d5 {[%emt 0:00:00]} 3. Nc3 {[%emt 0:00:10]} Nf6 {[%emt 0:00:11]} 4. e5 {[%emt 0:00:09]} Nfd7 {[%emt 0:00:10]} 5. d4 {[%emt 0:00:11]} c5 {[%emt 0:00:10]} 6. dxc5 {[%emt 0:00:09]} Nc6 {[%emt 0:00:15]} 7. Bf4 {[%emt 0:00:11]} a6 {[%emt 0:00:17]} 8. a3 {[%emt 0:21:38]} Nxc5 {[%emt 0:00:32]} 9. h4 {[%emt 0:01:07]} Be7 {[%emt 0:00:23]} 10. h5 {[%emt 0:00:34]} f5 {[%emt 0:03:21]} 11. b4 {[%emt 0:15:53]} Ne4 {[%emt 0:06:39]} 12. Nxe4 {[%emt 0:00:40]} fxe4 {[%emt 0:07:48]} 13. Nd4 {[%emt 0:01:34]} O-O {[%emt 0:06:14]} 14. g3 {[%emt 0:06:21]} a5 {[%emt 0:17:57]} 15. b5 {[%emt 0:10:17]} Nxd4 {[%emt 0:02:10]} 16. Qxd4 {[%emt 0:00:03]} b6 {[%emt 0:09:31]} 17. Bh3 {[%emt 0:04:44]} Bc5 {[%emt 0:07:35]} 18. Qd2 {[%emt 0:00:10]} a4 {[%emt 0:02:06]} 19. O-O {[%emt 0:04:02]} Qe8 {[%emt 0:09:10]} 20. Qe2 {[%emt 0:02:21]} Qe7 {[%emt 0:13:19]} 21. c4 {[%emt 0:02:54]} Bxa3 {[%emt 0:04:01]} 22. Qa2 {[%emt 0:00:50]} Bc5 {[%emt 0:03:54]} 23. cxd5 {[%emt 0:01:01]} Bd7 {[%emt 0:03:38]} 24. d6 {[%emt 0:06:09]} Qf7 {[%emt 0:01:03]} 25. Be3 {[%emt 0:07:51]} Rfe8 {[%emt 0:01:24]} 26. Qe2 {[%emt 0:03:44]} Ra5 {[%emt 0:00:32]} 27. Rfb1 {[%emt 0:00:53]} Rc8 {[%emt 0:00:27]} 28. Bg4 {[%emt 0:02:18]} Qe8 {[%emt 0:00:16]} 29. Bxc5 {[%emt 0:01:18]} Rxc5 {[%emt 0:00:09]} 30. Qxe4 {[%emt 0:00:35]} a3 {[%emt 0:00:38]} 31. f4 {[%emt 0:02:15]} Qc8 {[%emt 0:00:36]} 32. Be2 {[%emt 0:02:26]} a2 {[%emt 0:00:29]} 33. Rd1 {[%emt 0:00:14]} Rc3 {[%emt 0:00:33]} 34. Bd3 {[%emt 0:00:38]} Qc5+ {[%emt 0:00:16]} 35. Kh2 {[%emt 0:02:22]} Qf2+ {[%emt 0:00:40]} 36. Kh3 {[%emt 0:00:01]} Rxd3 {[%emt 0:00:45]} 37. Qxd3 {[%emt 0:01:20]} Qb2 {[%emt 0:00:38]} 38. Qd2 {[%emt 0:01:02]} Qb3 {[%emt 0:00:31]} 39. Rdc1 {[%emt 0:00:29]} Ra3 {[%emt 0:00:09]} 40. Qf2 {[%emt 0:00:45]} Kf7 {[%emt 0:00:54]} 41. Rc2 {[%emt 0:00:15]} Bxb5 {[%emt 0:00:36]} 42. Rcxa2 {[%emt 0:00:20]} Rxa2 {[%emt 0:00:11]} 43. Rxa2 {[%emt 0:00:20]} Bc6 {[%emt 0:00:47]} 44. Ra7+ {[%emt 0:00:57]} Kf8 {[%emt 0:00:17]} 45. f5 {[%emt 0:00:32]} Ke8 {[%emt 0:00:35]} 46. Qa2 {[%emt 0:00:11]} Qxa2 {[%emt 0:00:28]} 47. Rxa2 {[%emt 0:00:03]} exf5 {[%emt 0:00:05]} 48. Ra7 {[%emt 0:00:11]} b5 {[%emt 0:00:35]} 49. e6 {[%emt 0:00:55]} 1-0

[Event "ESP-chT 1st Division 2020"]
[Site "Padron"]
[Date "2020.10.03"]
[Round "1.18"]
[White "Chacon Perez, Juan"]
[Black "Castillo Escario, Yolanda"]
[Result "1-0"]
[ECO "C57"]
[WhiteElo "2141"]
[BlackElo "2006"]
[Annotator "ChessBase"]
[PlyCount "81"]
[EventDate "2020.10.01"]
[EventType "team-tourn"]
[EventCountry "ESP"]
[SourceTitle "playchess.com"]
[Source "ChessBase"]
[SourceQuality "1"]
[TimeControl "5400+30"]

1. e4 {[%emt 0:00:00]} e5 {[%emt 0:00:00]} 2. Nf3 {[%emt 0:00:00]} Nc6 {[%emt 0:00:00]} 3. Bc4 {[%emt 0:01:58]} Nf6 {[%emt 0:00:03]} 4. Ng5 {[%emt 0:01:25]} d5 {[%emt 0:00:22]} 5. exd5 {[%emt 0:00:09]} Nd4 {[%emt 0:00:21]} 6. c3 {[%emt 0:02:36]} b5 {[%emt 0:00:13]} 7. Bf1 {[%emt 0:01:46]} Nxd5 {[%emt 0:01:29]} 8. cxd4 {[%emt 0:00:09]} Qxg5 {[%emt 0:00:21]} 9. Bxb5+ {[%emt 0:00:18]} Kd8 {[%emt 0:01:09]} 10. O-O {[%emt 0:00:25]} Bb7 {[%emt 0:00:37]} 11. Qf3 {[%emt 0:00:16]} Rb8 {[%emt 0:00:36]} 12. dxe5 {[%emt 0:02:31]} Ne3 {[%emt 0:05:40]} 13. Qh3 {[%emt 0:00:14]} Qxg2+ {[%emt 0:00:13]} 14. Qxg2 {[%emt 0:00:05]} Nxg2 {[%emt 0:00:13]} 15. d4 {[%emt 0:00:27]} Be7 {[%emt 0:04:51]} 16. Be2 {[%emt 0:05:49]} g5 {[%emt 0:24:58]} 17. f3 {[%emt 0:08:31]} Nh4 {[%emt 0:04:55]} 18. Nc3 {[%emt 0:04:35]} f5 {[%emt 0:10:01]} 19. b3 {[%emt 0:09:20]} Rg8 {[%emt 0:04:33]} 20. Kf2 {[%emt 0:16:02]} Rg6 {[%emt 0:09:34]} 21. Bd2 {[%emt 0:03:53]} Kd7 {[%emt 0:09:05]} 22. Bb5+ {[%emt 0:09:50]} Kd8 {[%emt 0:09:32]} 23. Ke2 {[%emt 0:07:29]} Bb4 {[%emt 0:01:35]} 24. Bc4 {[%emt 0:02:16]} Bxc3 {[%emt 0:03:12]} 25. Bxc3 {[%emt 0:00:28]} Rh6 {[%emt 0:00:16]} 26. Bd2 {[%emt 0:05:32]} f4 {[%emt 0:01:02]} 27. Rf2 {[%emt 0:03:49]} Nf5 {[%emt 0:06:44]} 28. Kd3 {[%emt 0:00:41]} Rh3 {[%emt 0:00:18]} 29. d5 {[%emt 0:00:09]} Nh4 {[%emt 0:00:50]} 30. Ke4 {[%emt 0:00:19]} Ke7 {[%emt 0:01:06]} 31. Bb4+ {[%emt 0:01:18]} Kf7 {[%emt 0:00:14]} 32. e6+ {[%emt 0:01:39]} Kg6 {[%emt 0:00:27]} 33. Bc3 {[%emt 0:02:26]} Nf5 {[%emt 0:00:42]} 34. Be5 {[%emt 0:04:27]} Re8 {[%emt 0:00:38]} 35. Kd3 {[%emt 0:03:05]} Re7 {[%emt 0:00:32]} 36. Re1 {[%emt 0:01:12]} Ne3 {[%emt 0:00:53]} 37. Kd4 {[%emt 0:00:06]} Nf5+ {[%emt 0:00:22]} 38. Kc5 {[%emt 0:00:10]} Ne3 {[%emt 0:00:42]} 39. Bd3+ {[%emt 0:00:06]} Kh6 {[%emt 0:00:23]} 40. Be4 {[%emt 0:00:12]} Rh5 {[%emt 0:00:33]} 41. Rg1 {[%emt 0:00:43]} 1-0